bitfinex-derivatives/quotes_SOLF0:USTF0_20240923
["timestamp","ask_amount","ask_price","bid_price","bid_amount"]
[1727054147978,1.4279,146.71,146.59,18.4]
[1727054148187,18.4,146.69,146.59,18.4]
[1727054148379,18.4,146.69,146.57,18.4]
[1727054149191,18.4,146.69,146.58,3.4107]
[1727054149781,18.4,146.67,146.57,18.4]
[1727054149983,18.4,146.67,146.54,18.4]
[1727054150189,18.4,146.67,146.56,18.4]
[1727054150379,3.4104,146.61,146.57,3.4111]
[1727054150983,18.4,146.7,146.56,21.8113]
[1727054151186,18.4,146.68,146.56,18.4]
[1727054151390,18.4,146.68,146.54,18.4]
[1727054151698,18.4,146.68,146.56,18.4]
[1727054152186,18.4,146.68,146.54,18.4]
[1727054152387,18.4,146.68,146.45,81.82]
[1727054152388,18.4,146.65,146.52,18.4]
[1727054152687,2.8351,146.64,146.52,18.4]
[1727054153186,1.4218,146.63,146.52,18.4]
[1727054153383,3.4109,146.58,146.54,3.4117]
[1727054153584,1.4218,146.63,146.52,18.4]
[1727054153895,19.8218,146.63,146.52,18.4]
[1727054154190,19.8218,146.63,146.49,18.4]
[1727054154391,3.4113,146.57,146.52,3.4121]
[1727054154692,3.4113,146.57,146.49,18.4]
[1727054154886,23.16309692,146.63,146.52,18.4]
[1727054155187,3.411,146.58,146.54,3.4117]
[1727054155688,4.76309692,146.63,146.54,18.4]
[1727054156788,3.411,146.58,146.54,21.8118]
[1727054157290,4.76309692,146.63,146.52,18.4]
[1727054157998,18.4,146.62,146.52,3.4122]
[1727054158297,18.4,146.62,146.5,18.4]
[1727054158790,18.4,146.62,146.52,18.4]
[1727054158986,4.76309692,146.63,146.52,18.4]
[1727054159289,4.76309692,146.63,146.54,18.4]
[1727054159989,4.76309692,146.63,146.54,21.8117]
[1727054160185,4.76309692,146.63,146.48,3.34858646]
[1727054160186,4.76309692,146.63,146.52,18.4]
[1727054160692,3.4108,146.59,146.52,18.4]
[1727054160991,4.76309692,146.63,146.52,18.4]
[1727054161184,3.411,146.58,146.54,3.4117]
[1727054161381,4.76309692,146.63,146.52,18.4]
[1727054161591,3.4107,146.59,146.55,3.4115]
[1727054161784,4.76309692,146.63,146.54,18.4]
[1727054162390,3.4108,146.59,146.55,3.4115]
[1727054162689,1.4218,146.63,146.57,18.4]
[1727054162893,100.24,146.72,146.59,18.4]
[1727054163196,2.8393,146.69,146.59,18.4]
[1727054163401,6.18299509,146.69,146.59,18.4]
[1727054163589,3.4094,146.65,146.61,3.41]
[1727054163895,6.18299509,146.69,146.59,18.4]
[1727054164889,6.18299509,146.69,146.57,18.4]
[1727054166199,3.4094,146.65,146.57,18.4]
[1727054166387,3.4094,146.65,146.59,18.4]
[1727054166699,18.4,146.68,146.57,18.4]
[1727054167203,6.18299509,146.69,146.52,18.4]
[1727054167204,18.4,146.65,146.52,18.4]
[1727054167391,18.4,146.63,146.52,18.4]
[1727054167588,1.3368,146.62,146.52,18.4]
[1727054168105,2.7276,146.61,146.52,18.4]
[1727054168294,6.15991619,146.61,146.52,18.4]
[1727054168493,2.7276,146.61,146.52,18.4]
[1727054168806,2.7276,146.61,146.5,18.4]
[1727054169000,18.4,146.6,146.47,18.4]
[1727054169502,3.46064577,146.6,146.47,18.4]
[1727054169711,18.4,146.58,146.47,18.4]
[1727054170207,18.4,146.58,146.45,18.4]
[1727054170586,18.4,146.58,146.47,3.4133]
[1727054171501,3.4124,146.52,146.47,3.4133]
[1727054171698,18.4,146.58,146.48,3.4131]
[1727054171902,18.4,146.6,146.47,18.4]
[1727054172098,3.4114,146.56,146.5,18.4]
[1727054172401,6.14558074,146.61,146.52,18.4]
[1727054173298,3.4115,146.56,146.51,3.4123]
[1727054173500,6.14558074,146.61,146.51,3.4123]
[1727054173695,3.412,146.54,146.5,18.4]
[1727054173901,3.412,146.54,146.47,18.4]
[1727054174099,18.4,146.6,146.51,3.4123]
[1727054174291,3.4117,146.55,146.51,3.4123]
[1727054175505,18.4,146.6,146.47,18.4]
[1727054175802,18.4,146.57,146.45,18.4]
[1727054176006,18.4,146.57,146.47,3.4134]
[1727054176600,3.4125,146.52,146.47,3.4134]
[1727054176803,3.39979515,146.53,146.46,3.4136]
[1727054177002,3.4127,146.51,146.46,3.4136]
[1727054177609,3.4127,146.51,146.47,3.4134]
[1727054177997,3.4131,146.49,146.42,18.4]
[1727054178301,2.759,146.52,146.4,18.4]
[1727054178510,3.4136,146.47,146.4,18.4]
[1727054178702,1.3431,146.51,146.4,18.4]
[1727054178908,18.4,146.5,146.37,18.4]
[1727054179403,18.4,146.48,146.35,18.4]
[1727054179602,3.4147,146.42,146.35,18.4]
[1727054180203,18.4,146.48,146.36,3.4158]
[1727054180402,18.4,146.45,146.32,18.4]
[1727054180611,18.4,146.43,146.31,81.92]
[1727054180802,18.4,146.43,146.3,18.4]
[1727054180803,3.4157,146.38,146.3,18.4]
[1727054181010,19.7431,146.43,146.3,18.4]
[1727054181210,23.10696532,146.43,146.3,18.4]
[1727054181403,23.10696532,146.43,146.33,3.4165]
[1727054181606,23.10696532,146.43,146.3,18.4]
[1727054182009,3.4159,146.37,146.32,3.4169]
[1727054182212,3.4159,146.37,146.3,18.4]
[1727054182408,3.4151,146.4,146.33,18.4]
[1727054182611,4.70696532,146.43,146.33,18.4]
[1727054183209,4.70696532,146.43,146.35,18.4]
[1727054183510,3.36386532,146.43,146.35,18.4]
[1727054183711,3.36386532,146.43,146.36,3.416]
[1727054183911,3.36386532,146.43,146.35,18.4]
[1727054184811,3.4149,146.41,146.37,3.4156]
[1727054185013,2.7688,146.44,146.37,18.4]
[1727054185316,1.413,146.47,146.39,18.4]
[1727054185515,3.50101691,146.46,146.39,18.4]
[1727054185815,6.82928458,146.46,146.39,18.4]
[1727054186023,21.2573,146.5,146.39,18.4]
[1727054186024,2.8573,146.5,146.39,18.4]
[1727054186209,3.4136,146.47,146.43,3.4141]
[1727054187416,3.36910939,146.48,146.39,18.4]
[1727054187617,21.2573,146.5,146.39,18.4]
[1727054188212,24.7334161,146.5,146.37,18.4]
[1727054188521,18.4,146.48,146.37,18.4]
[1727054188719,3.4148,146.42,146.37,3.4156]
[1727054189024,3.4148,146.42,146.35,18.4]
[1727054189219,3.4148,146.42,146.37,3.4158]
[1727054189420,3.4144,146.43,146.35,18.4]
[1727054189723,1.432,146.49,146.37,18.4]
[1727054189928,1.432,146.49,146.39,18.4]
[1727054190819,3.4136,146.47,146.42,3.4146]
[1727054191021,1.432,146.49,146.39,18.4]
[1727054192020,1.432,146.49,146.4,3.4149]
[1727054192423,3.4141,146.45,146.41,3.4148]
[1727054192618,1.432,146.49,146.39,18.4]
[1727054192824,6.3334161,146.5,146.42,18.4]
[1727054193632,18.4,146.53,146.42,18.4]
[1727054193835,1.3967,146.54,146.44,18.4]
[1727054194324,3.4127,146.51,146.47,3.4132]
[1727054194523,18.4,146.48,146.21,10.2586]
[1727054194717,18.4,146.47,146.35,18.4]
[1727054194916,2.7618,146.5,146.32,18.4]
[1727054194917,18.4,146.45,146.32,18.4]
[1727054195215,3.4159,146.37,146.32,3.4169]
[1727054195522,3.48851571,146.39,146.27,18.4]
[1727054195720,18.4,146.39,146.3,3.4172]
[1727054195919,21.78297906,146.39,146.3,3.4172]
[1727054196326,3.4167,146.34,146.3,3.4172]
[1727054197313,3.4169,146.32,146.28,3.4177]
[1727054197921,3.4169,146.32,146.24,18.4]
[1727054198123,18.4,146.35,146.22,18.4]
[1727054198321,19.7354,146.4,146.21,29.86]
[1727054198322,29.86,146.34,146.21,29.86]
[1727054198722,3.42677338,146.34,146.24,29.86]
[1727054198917,29.86,146.39,146.26,29.86]
[1727054199120,3.4169,146.33,146.28,3.4179]
[1727054199421,3.50231621,146.35,146.26,29.86]
[1727054199622,29.86,146.39,146.26,29.86]
[1727054199820,29.86,146.39,146.27,3.4179]
[1727054200024,33.26352943,146.39,146.26,29.86]
[1727054200928,3.40352943,146.39,146.28,29.86]
[1727054201129,1.3354,146.4,146.33,3.4167]
[1727054201733,4.77484265,146.4,146.33,3.4167]
[1727054202223,3.4161,146.36,146.28,29.86]
[1727054202534,4.77484265,146.4,146.26,29.86]
[1727054202722,29.86,146.38,146.3,3.4172]
[1727054202918,29.86,146.38,146.26,29.86]
[1727054203328,3.4163,146.35,146.26,29.86]
[1727054204037,3.4163,146.35,146.31,3.417]
[1727054205630,3.4165,146.34,146.3,3.4174]
[1727054205933,29.86,146.38,146.26,29.86]
[1727054206129,29.86,146.35,146.24,29.86]
[1727054206836,29.86,146.35,146.27,3.4181]
[1727054207040,29.86,146.35,146.24,29.86]
[1727054207334,29.86,146.35,146.21,29.86]
[1727054207724,29.86,146.35,146.23,29.86]
[1727054208035,29.86,146.35,146.27,3.4181]
[1727054208236,29.86,146.35,146.23,29.86]
[1727054208436,29.86,146.35,146.21,29.86]
[1727054208639,29.86,146.35,146.25,3.4185]
[1727054208938,29.86,146.33,146.21,29.86]
[1727054209130,29.86,146.33,146.23,3.419]
[1727054209131,2.742,146.32,146.23,3.419]
[1727054209327,29.86,146.31,146.12,6.8431]
[1727054209533,29.86,146.29,146.15,29.86]
[1727054209827,29.86,146.29,146.2,3.4196]
[1727054210028,29.86,146.29,146.16,3.38542022]
[1727054210424,3.4189,146.24,146.18,3.4201]
[1727054210628,3.4189,146.24,146.16,3.38542022]
[1727054210832,3.4189,146.24,146.15,29.86]
[1727054211038,29.86,146.29,146.15,29.86]
[1727054211241,29.86,146.26,146.12,29.86]
[1727054211534,3.4195,146.22,146.16,3.4205]
[1727054211739,3.36275892,146.24,146.12,29.86]
[1727054211939,29.86,146.29,146.16,29.86]
[1727054212331,3.419,146.24,146.19,3.42]
[1727054212530,3.419,146.24,146.12,29.86]
[1727054212531,3.48966194,146.24,146.12,29.86]
[1727054212728,29.86,146.24,146.12,29.86]
[1727054213040,2.7478,146.23,146.13,3.4214]
[1727054213236,4.087,146.23,146.1,29.86]
[1727054213438,3.4198,146.2,146.15,3.4208]
[1727054214035,4.087,146.23,146.12,29.86]
[1727054214229,2.7478,146.23,146.15,29.86]
[1727054215238,3.4198,146.2,146.15,3.4207]
[1727054215443,2.7478,146.23,146.13,29.86]
[1727054215838,3.4197,146.21,146.13,29.86]
[1727054216046,29.86,146.22,146.1,29.86]
[1727054216238,31.2862,146.22,146.1,29.86]
[1727054216848,3.4204,146.18,146.1,29.86]
[1727054217243,31.2862,146.22,146.1,29.86]
[1727054217944,3.4199,146.2,146.15,3.4207]
[1727054218239,31.2862,146.22,146.1,29.86]
[1727054218441,3.42,146.19,146.15,3.4208]
[1727054219044,3.4203,146.18,146.14,3.4211]
[1727054219743,3.42,146.19,146.15,3.4209]
[1727054220546,3.4198,146.2,146.16,3.4206]
[1727054220743,2.7478,146.23,146.13,18.4]
[1727054220947,21.1478,146.23,146.11,18.4]
[1727054221551,3.4198,146.2,146.16,3.4205]
[1727054221752,3.4198,146.2,146.11,18.4]
[1727054222439,3.4196,146.21,146.11,18.4]
[1727054222640,2.7478,146.23,146.14,18.4]
[1727054222843,2.7478,146.23,146.17,3.4204]
[1727054223049,2.7478,146.23,146.14,18.4]
[1727054223351,21.1478,146.23,146.15,3.4207]
[1727054223557,21.1478,146.23,146.11,18.4]
[1727054223948,3.4197,146.21,146.17,3.4204]
[1727054224653,3.4197,146.21,146.18,3.4202]
[1727054225653,2.7478,146.23,146.19,3.4199]
[1727054225952,2.7478,146.23,146.14,18.4]
[1727054226456,21.1478,146.23,146.14,18.4]
[1727054226659,3.4199,146.2,146.14,18.4]
[1727054227046,3.4196,146.21,146.17,3.4203]
[1727054228661,2.7478,146.23,146.14,18.4]
[1727054229162,3.4193,146.22,146.18,3.42]
[1727054229660,2.7478,146.23,146.21,3.4193]
[1727054229865,2.7478,146.23,146.05,18.4]
[1727054229866,1.411,146.23,146.18,18.4]
[1727054230049,3.45408805,146.24,146.18,18.4]
[1727054230253,3.4187,146.25,146.21,3.4193]
[1727054230763,6.8311,146.39,146.24,18.4]
[1727054231073,2.7662,146.32,146.24,18.4]
[1727054231451,3.46153445,146.31,146.24,18.4]
[1727054232664,1.4107,146.38,146.27,18.4]
[1727054232856,2.7662,146.37,146.29,18.4]
[1727054233060,6.17020947,146.37,146.29,18.4]
[1727054233366,9.58620947,146.37,146.33,3.4167]
[1727054233577,18.4,146.43,146.31,18.4]
[1727054234266,21.85632624,146.43,146.31,18.4]
[1727054234971,3.4154,146.39,146.31,18.4]
[1727054235267,18.4,146.38,146.27,18.4]
[1727054235665,21.85530042,146.38,146.27,18.4]
[1727054235863,3.4163,146.35,146.3,3.4173]
[1727054236165,3.45530042,146.38,146.29,18.4]
[1727054236368,3.4162,146.36,146.29,18.4]
[1727054236767,18.4,146.41,146.29,18.4]
[1727054237068,18.4,146.43,146.31,18.4]
[1727054237265,21.84044629,146.43,146.31,18.4]
[1727054237564,18.4,146.41,146.29,18.4]
[1727054238068,3.4158,146.38,146.29,18.4]
[1727054238574,3.4158,146.37,146.29,18.4]
[1727054238766,18.4,146.41,146.29,18.4]
[1727054238966,21.85582831,146.41,146.29,18.4]
[1727054239174,3.4157,146.38,146.34,3.4164]
[1727054239775,3.4157,146.38,146.35,3.4162]
[1727054240067,3.4154,146.39,146.35,3.4162]
[1727054240370,4.26,146.44,146.34,18.4]
[1727054240560,3.44602447,146.43,146.36,18.4]
[1727054240971,3.44602447,146.43,146.38,3.4153]
[1727054241265,3.44602447,146.43,146.36,18.4]
[1727054241471,6.86062447,146.43,146.36,18.4]
[1727054241672,3.4146,146.43,146.39,3.4152]
[1727054242359,3.4148,146.42,146.38,3.4155]
[1727054243273,3.4145,146.43,146.39,3.4152]
[1727054243869,6.75375642,146.43,146.39,3.4152]
[1727054244372,3.4147,146.42,146.39,3.4152]
[1727054245561,3.33925642,146.43,146.4,3.4149]
[1727054245970,2.8639,146.44,146.4,3.4149]
[1727054246274,2.8639,146.44,146.41,3.4147]
[1727054246466,19.7711,146.48,146.41,3.4147]
[1727054246467,1.3711,146.48,146.41,3.4147]
[1727054246675,1.3711,146.48,146.38,18.4]
[1727054246975,1.3711,146.48,146.42,3.4146]
[1727054247772,1.3711,146.48,146.38,18.4]
[1727054247970,3.4148,146.42,146.36,18.4]
[1727054248170,6.78321867,146.42,146.36,18.4]
[1727054248378,6.78321867,146.42,146.39,3.4153]
[1727054248773,3.4149,146.41,146.36,18.4]
[1727054249073,18.4,146.46,146.34,18.4]
[1727054249272,3.415,146.41,146.34,18.4]
[1727054249474,3.43764947,146.4,146.37,3.4157]
[1727054249674,18.4,146.46,146.34,18.4]
[1727054249877,3.4148,146.42,146.34,18.4]
[1727054250068,6.79436952,146.42,146.34,18.4]
[1727054250378,3.37956952,146.42,146.34,18.4]
[1727054250678,19.7711,146.48,146.38,3.4153]
[1727054250877,19.7711,146.48,146.34,18.4]
[1727054251381,19.7711,146.48,146.4,3.415]
[1727054251874,3.4145,146.43,146.39,3.4152]
[1727054252076,3.41430914,146.42,146.39,3.4152]
[1727054252378,6.82890914,146.42,146.39,3.4152]
[1727054252577,19.7711,146.48,146.4,3.4151]
[1727054252784,19.7711,146.48,146.36,18.4]
[1727054252970,19.7711,146.48,146.42,3.4144]
[1727054252971,3.4138,146.46,146.42,3.4144]
[1727054253370,1.3711,146.48,146.42,3.4144]
[1727054253677,1.3711,146.48,146.36,18.4]
[1727054254186,3.4146,146.43,146.4,3.4151]
[1727054254381,3.44437611,146.42,146.4,3.4151]
[1727054254784,3.4142,146.44,146.36,21.80986743]
[1727054254976,19.7711,146.48,146.36,21.80986743]
[1727054255383,3.4144,146.43,146.39,3.4151]
[1727054255581,3.3455179,146.42,146.36,21.80986743]
[1727054255989,3.4144,146.44,146.4,3.4149]
[1727054256184,19.7711,146.48,146.36,21.80986743]
[1727054256390,1.3711,146.48,146.41,18.4]
[1727054256891,2.7263,146.5,146.41,18.4]
[1727054257187,2.7263,146.5,146.43,18.4]
[1727054257388,6.1391,146.5,146.46,3.4136]
[1727054258385,6.1391,146.5,146.43,18.4]
[1727054258785,6.1391,146.5,146.46,3.4135]
[1727054259390,2.7263,146.5,146.43,18.4]
[1727054259597,2.7263,146.5,146.4,18.4]
[1727054259794,2.7263,146.5,146.42,3.4145]
[1727054260183,2.7263,146.5,146.38,18.4]
[1727054260391,3.4143,146.44,146.38,18.4]
[1727054260693,2.7263,146.5,146.39,3.44467213]
[1727054260896,3.4138,146.46,146.39,3.44467213]
[1727054261094,3.4138,146.46,146.42,3.4144]
[1727054261298,3.4138,146.46,146.39,3.44467213]
[1727054261498,3.4135,146.47,146.43,3.4142]
[1727054261701,3.4135,146.47,146.41,18.4]
[1727054261900,2.7263,146.5,146.41,18.4]
[1727054262086,2.7263,146.5,146.43,3.4142]
[1727054263604,2.7263,146.5,146.39,3.47076103]
[1727054263805,3.4139,146.46,146.38,18.4]
[1727054264101,3.4139,146.46,146.42,3.4145]
[1727054264301,3.4139,146.46,146.39,3.4154256]
[1727054264702,2.7263,146.5,146.34,18.4]
[1727054264703,2.7263,146.5,146.41,18.4]
[1727054264901,2.7263,146.5,146.41,21.76521382]
[1727054265298,2.7263,146.5,146.43,18.4]
[1727054265900,2.7263,146.5,146.46,3.4135]
[1727054266810,2.7263,146.5,146.43,18.4]
[1727054266811,2.7263,146.5,146.45,3.4139]
[1727054266998,2.7263,146.5,146.43,18.4]
[1727054267412,3.4133,146.48,146.44,3.414]
[1727054267611,2.7263,146.5,146.44,3.414]
[1727054268005,3.4133,146.48,146.43,18.4]
[1727054268205,3.4133,146.48,146.45,3.4139]
[1727054268907,3.4131,146.49,146.46,3.4136]
[1727054269613,6.1391,146.5,146.47,3.4134]
[1727054270211,2.7263,146.5,146.43,18.4]
[1727054270607,3.4131,146.49,146.46,3.4135]
[1727054271108,6.1391,146.5,146.46,3.4135]
[1727054271316,6.1391,146.5,146.47,3.4134]
[1727054271706,6.80929297,146.51,146.47,3.4134]
[1727054271915,3.37186714,146.53,146.45,18.4]
[1727054272213,2.6516,146.55,146.45,18.4]
[1727054272404,3.4124,146.52,146.48,3.4131]
[1727054272711,3.4750683,146.52,146.45,18.4]
[1727054272912,2.6516,146.55,146.47,18.4]
[1727054273113,3.4121,146.53,146.5,3.4126]
[1727054273506,6.83047431,146.53,146.5,3.4126]
[1727054273708,3.412,146.54,146.51,3.4125]
[1727054273911,3.41222677,146.53,146.51,3.4125]
[1727054274105,3.41222677,146.53,146.47,18.4]
[1727054274300,2.6516,146.55,146.47,18.4]
[1727054274701,3.4121,146.53,146.5,3.4126]
[1727054275908,3.4119,146.54,146.47,18.4]
[1727054276913,3.4119,146.54,146.51,3.4125]
[1727054277319,1.4245,146.59,146.5,18.4]
[1727054277510,4.80621014,146.59,146.5,18.4]
[1727054277717,3.4111,146.58,146.5,21.82098074]
[1727054277918,3.46156471,146.57,146.54,3.4117]
[1727054278420,6.87266471,146.57,146.54,3.4117]
[1727054278621,3.46156471,146.57,146.53,3.412]
[1727054278921,1.4245,146.59,146.53,3.412]
[1727054279121,4.88469934,146.59,146.51,3.4124]
[1727054279417,18.4,146.55,146.34,13.6654]
[1727054279625,18.4,146.53,146.41,18.4]
[1727054279918,18.4,146.51,146.39,21.80114691]
[1727054280126,1.383,146.5,146.39,18.4]
[1727054280420,1.383,146.5,146.41,18.4]
[1727054280925,1.383,146.5,146.42,3.4144]
[1727054282220,1.383,146.5,146.43,3.4143]
[1727054282928,3.4136,146.47,146.43,3.4143]
[1727054283226,1.383,146.5,146.39,18.4]
[1727054283428,2.6379,146.46,146.37,3.37956004]
[1727054283626,2.6379,146.46,146.34,18.4]
[1727054283836,21.0379,146.46,146.34,18.4]
[1727054284134,21.0379,146.46,146.33,3.4007378]
[1727054284135,18.4,146.44,146.33,3.4007378]
[1727054284321,1.3187,146.43,146.32,18.4]
[1727054284526,1.3187,146.43,146.34,18.4]
[1727054284828,1.3187,146.43,146.36,18.4]
[1727054285132,3.50054674,146.42,146.38,3.4153]
[1727054285322,3.50054674,146.42,146.34,21.7918808]
[1727054285522,1.3187,146.43,146.34,18.4]
[1727054285731,3.4148,146.42,146.37,3.4157]
[1727054286025,3.43493712,146.41,146.37,3.4157]
[1727054286335,1.3187,146.43,146.37,18.4]
[1727054286524,3.37479496,146.42,146.37,18.4]
[1727054287230,3.4142,146.44,146.4,3.415]
[1727054287433,2.6379,146.46,146.39,18.4]
[1727054287925,6.0517,146.46,146.41,3.4146]
[1727054288119,2.6379,146.46,146.41,3.4146]
[1727054288320,2.6379,146.46,146.39,18.4]
[1727054288525,2.6379,146.46,146.39,3.4153]
[1727054288931,2.6379,146.46,146.37,18.4]
[1727054289328,3.4144,146.43,146.37,18.4]
[1727054289834,2.6379,146.46,146.37,18.4]
[1727054290029,2.6379,146.46,146.39,18.4]
[1727054290634,2.6379,146.46,146.43,3.4142]
[1727054290822,3.3304888,146.51,146.42,18.4]
[1727054291030,1.4155,146.51,146.44,18.4]
[1727054291225,4.77924093,146.51,146.44,21.8139]
[1727054291436,4.77924093,146.51,146.39,18.4]
[1727054291628,3.4141,146.45,146.41,3.4147]
[1727054292132,4.77924093,146.51,146.39,18.4]
[1727054292533,4.77924093,146.51,146.41,18.4]
[1727054292735,4.77924093,146.51,146.44,18.4]
[1727054293236,4.77924093,146.51,146.42,18.4]
[1727054294333,4.77924093,146.51,146.44,3.4141]
[1727054294534,4.77924093,146.51,146.42,18.4]
[1727054294733,4.77924093,146.51,146.44,18.4]
[1727054294930,3.4131,146.49,146.44,18.4]
[1727054295137,4.77924093,146.51,146.46,18.4]
[1727054295646,3.4129,146.5,146.46,21.8136]
[1727054295840,3.4129,146.5,146.46,18.4]
[1727054296725,3.4129,146.5,146.46,21.8136]
[1727054296933,4.77924093,146.51,146.44,18.4]
[1727054297545,3.4132,146.48,146.44,21.814]
[1727054297926,4.77924093,146.51,146.44,18.4]
[1727054298939,3.4131,146.49,146.46,3.4136]
[1727054299841,2.6498,146.54,146.46,18.4]
[1727054300229,3.4123,146.52,146.46,18.4]
[1727054300434,2.6498,146.54,146.46,18.4]
[1727054300938,2.6498,146.54,146.47,3.4134]
[1727054301143,2.6498,146.54,146.44,18.4]
[1727054301329,3.4132,146.49,146.45,3.4138]
[1727054301741,3.4132,146.49,146.44,18.4]
[1727054301942,6.90149022,146.5,146.46,3.4135]
[1727054302139,3.48869022,146.5,146.46,18.4]
[1727054302335,1.4471,146.53,146.46,18.4]
[1727054302535,1.3198,146.54,146.48,18.4]
[1727054302745,1.3198,146.54,146.45,18.4]
[1727054303641,1.3198,146.54,146.43,21.81664935]
[1727054303943,1.3198,146.54,146.43,18.4]
[1727054304143,18.4,146.53,146.42,3.34653735]
[1727054304536,3.4142,146.44,146.41,3.4147]
[1727054304748,3.43805491,146.44,146.38,18.4]
[1727054305051,2.6947,146.49,146.38,18.4]
[1727054305237,3.4147,146.42,146.38,21.8154]
[1727054305537,3.4147,146.42,146.38,18.4]
[1727054306538,18.03385456,146.49,146.38,18.4]
[1727054307448,2.6947,146.49,146.38,18.4]
[1727054307845,2.6947,146.49,146.41,3.4148]
[1727054308150,2.6947,146.49,146.4,18.4]
[1727054308348,2.6947,146.49,146.42,18.4]
[1727054308737,3.43532304,146.5,146.42,21.77114413]
[1727054308947,3.4131,146.49,146.45,3.4138]
[1727054309244,2.693,146.53,146.44,18.4]
[1727054309551,2.693,146.53,146.46,18.4]
[1727054309749,3.4123,146.52,146.46,18.4]
[1727054309951,1.3198,146.54,146.46,18.4]
[1727054310153,1.3198,146.54,146.46,21.76487077]
[1727054310350,3.4124,146.52,146.48,3.4131]
[1727054310858,1.3198,146.54,146.44,18.4]
[1727054311052,1.3198,146.54,146.42,21.83009203]
[1727054311255,1.3198,146.54,146.42,18.4]
[1727054311449,1.3198,146.54,146.45,3.4139]
[1727054311855,3.4129,146.5,146.46,3.4135]
[1727054312047,6.74635529,146.5,146.46,3.4135]
[1727054312651,1.3198,146.54,146.47,18.4]
[1727054313155,2.7583,146.58,146.49,18.4]
[1727054313347,4.0721,146.58,146.49,18.4]
[1727054313754,3.4114,146.56,146.51,18.4]
[1727054314248,3.4113,146.57,146.53,3.412]
[1727054315051,4.7247,146.58,146.51,18.4]
[1727054315557,4.7247,146.58,146.54,3.4118]
[1727054315744,3.4109,146.58,146.54,3.4118]
[1727054315953,1.3905,146.62,146.56,18.4]
[1727054316149,6.08382081,146.63,146.57,3.4109]
[1727054316856,3.4103,146.61,146.57,3.4109]
[1727054317052,3.4103,146.61,146.56,18.4]
[1727054317053,6.08382081,146.63,146.56,18.4]
[1727054317256,6.08382081,146.63,146.53,18.4]
[1727054317559,3.4109,146.58,146.53,18.4]
[1727054318053,3.4109,146.58,146.54,3.4117]
[1727054318257,3.4107,146.59,146.53,18.4]
[1727054318653,3.4107,146.59,146.55,3.4114]
[1727054319453,6.08382081,146.63,146.56,18.4]
[1727054320053,3.4104,146.6,146.56,21.8113]
[1727054320249,6.08382081,146.63,146.54,18.4]
[1727054320556,3.4111,146.57,146.53,3.412]
[1727054320953,15.31807127,146.61,146.49,18.4]
[1727054321166,15.31807127,146.61,146.51,18.4]
[1727054321653,3.4112,146.57,146.53,3.4119]
[1727054321857,6.08382081,146.63,146.51,18.4]
[1727054322359,3.4115,146.56,146.52,3.4121]
[1727054322559,3.4115,146.56,146.51,18.4]
[1727054322761,3.4112,146.57,146.53,3.4119]